[Event "44th Chess Olympiad Women 2022"]
[Site "Chennai"]
[Date "2022.08.09"]
[Round "11.44"]
[White "Yu, Weiyang"]
[Black "Galera Serra, Maria"]
[Result "1-0"]
[ECO "C78"]
[WhiteElo "1504"]
[BlackElo "1464"]
[Annotator "NA RC COMBH"]
[PlyCount "145"]
[EventDate "2022.07.29"]
[EventType "team-tourn"]
[EventCountry "IND"]
[SourceTitle "playchess.com"]
[Source "ChessBase"]
[SourceQuality "1"]
[WhiteTeam "New Zealand"]
[BlackTeam "Andorra"]
[WhiteTeamCountry "NZL"]
[BlackTeamCountry "AND"]
[TimeControl "40/5400+30:1800+30"]

1. e4 {[%emt 0:00:12]} e5 {[%emt 0:00:09]} 2. Nf3 {[%emt 0:00:00]} Nc6 {[%emt 0:00:04]} 3. Bb5 {[%emt 0:00:00]} a6 {[%emt 0:00:06]} 4. Ba4 {[%emt 0:00:05]} Nf6 {[%emt 0:02:53]} 5. O-O {[%emt 0:00:08]} b5 {[%emt 0:00:02]} 6. Bb3 {[%emt 0:00:11]} Bc5 {[%emt 0:04:33]} 7. c3 {[%emt 0:02:47]} d6 {[%emt 0:03:30]} 8. h3 {[%emt 0:01:44]} O-O {[%emt 0:00:22]} 9. d4 {[%emt 0:00:40]} exd4 {[%emt 0:02:14]} 10. cxd4 {[%emt 0:00:13]} Bb6 {[%emt 0:00:08]} 11. Be3 {[%emt 0:06:01]} Na5 {[%emt 0:02:07]} 12. Bc2 {[%emt 0:00:46]} Nc4 {[%emt 0:00:31]} 13. Bc1 {[%emt 0:00:56]} h6 {[%emt 0:11:07]} 14. b3 {[%emt 0:03:11]} Na5 {[%emt 0:01:07]} 15. Be3 {[%emt 0:00:27]} c5 {[%emt 0:01:37]} 16. Nc3 {[%emt 0:03:58]} cxd4 {[%emt 0:00:34]} 17. Bxd4 {[%emt 0:00:15]} Nc6 {[%emt 0:00:05]} 18. Bxb6 {[%emt 0:01:01]} Qxb6 {[%emt 0:00:18]} 19. Nd5 {[%emt 0:09:21]} Qd8 {[%emt 0:04:25]} 20. Qd3 {[%emt 0:03:27]} Ne5 {[%emt 0:00:23]} 21. Nxe5 {[%emt 0:00:33]} dxe5 {[%emt 0:00:10]} 22. f4 {[%emt 0:04:12]} Nxd5 {[%emt 0:05:19]} 23. exd5 {[%emt 0:00:09]} e4 {[%emt 0:00:06]} 24. Qxe4 {[%emt 0:02:35]} f5 {[%emt 0:00:10]} 25. Qd4 {[%emt 0:03:28]} Rf6 {[%emt 0:02:22]} 26. Rfe1 {[%emt 0:01:36]} Bb7 {[%emt 0:02:35]} 27. Re5 {[%emt 0:01:05]} Qd7 {[%emt 0:04:58]} 28. Rae1 {[%emt 0:04:04]} Raf8 {[%emt 0:02:52]} 29. b4 {[%emt 0:02:59]} Qd8 {[%emt 0:20:08]} 30. Bb3 {[%emt 0:05:31]} Rg6 {[%emt 0:01:05]} 31. Re6 {[%emt 0:09:48]} Rg3 {[%emt 0:03:19]} 32. R1e3 {[%emt 0:03:46]} Rxe3 {[%emt 0:03:56]} 33. Rxe3 {[%emt 0:00:14]} Rf6 {[%emt 0:00:39]} 34. Qc5 {[%emt 0:07:00]} Kh7 {[%emt 0:02:07]} 35. Re5 {[%emt 0:03:25]} Bc8 {[%emt 0:06:33]} 36. Bc2 {[%emt 0:05:58]} Rf7 {[%emt 0:03:51]} 37. d6 {[%emt 0:03:36]} Rf6 {[%emt 0:00:31]} 38. Rd5 {[%emt 0:04:11]} Kh8 {[%emt 0:00:23]} 39. Qc7 {[%emt 0:01:50]} Rf8 {[%emt 0:01:52]} 40. Qxd8 {[%emt 0:04:44]} Rxd8 {[%emt 0:00:07]} 41. Kf2 {[%emt 0:31:28]} g6 {[%emt 0:31:29]} 42. g4 {[%emt 0:02:25]} fxg4 {[%emt 0:02:55]} 43. hxg4 {[%emt 0:00:06]} Bxg4 {[%emt 0:00:08]} 44. Bxg6 {[%emt 0:00:11]} Kg7 {[%emt 0:00:20]} 45. f5 {[%emt 0:00:00]} Kf6 {[%emt 0:00:00]} 46. Kg3 {[%emt 0:00:00]} Be2 {[%emt 0:00:00]} 47. Kh4 {[%emt 0:00:00]} Bf3 {[%emt 0:00:00]} 48. Rd2 {[%emt 0:00:00]} Bc6 {[%emt 0:00:00]} 49. Kh5 {[%emt 0:00:00]} Bd7 {[%emt 0:00:00]} 50. Rc2 {[%emt 0:00:00]} Bxf5 {[%emt 0:00:00]} 51. Rf2 {[%emt 0:00:00]} Rxd6 {[%emt 0:00:00]} 52. Rxf5+ {[%emt 0:00:00]} Ke7 {[%emt 0:00:00]} 53. Rc5 {[%emt 0:00:00]} Rd2 {[%emt 0:00:00]} 54. Rc2 {[%emt 0:00:00]} Rd4 {[%emt 0:00:00]} 55. Rc6 {[%emt 0:00:33]} Rxb4 {[%emt 0:00:00]} 56. Rxa6 {[%emt 0:00:08]} Ra4 {[%emt 0:00:00]} 57. Rxa4 {[%emt 0:00:09]} bxa4 {[%emt 0:00:00]} 58. Bc2 {[%emt 0:00:05]} Kd6 {[%emt 0:00:00]} 59. Bxa4 {[%emt 0:00:07]} Kc5 {[%emt 0:00:00]} 60. Kxh6 {[%emt 0:00:06]} Kb4 {[%emt 0:00:00]} 61. Bb3 {[%emt 0:00:31]} Ka3 {[%emt 0:00:00]} 62. Kg5 {[%emt 0:00:20]} Kb4 {[%emt 0:00:00]} 63. Kf4 {[%emt 0:00:22]} Ka3 {[%emt 0:00:00]} 64. Ke4 {[%emt 0:00:04]} Kb4 {[%emt 0:00:00]} 65. Kd5 {[%emt 0:00:12]} Ka5 {[%emt 0:00:00]} 66. Kc5 {[%emt 0:00:19]} Ka6 {[%emt 0:00:00]} 67. a4 {[%emt 0:00:07]} Ka5 {[%emt 0:00:00]} 68. Bc2 {[%emt 0:00:05]} Ka6 {[%emt 0:00:00]} 69. Kb4 {[%emt 0:00:05]} Kb6 {[%emt 0:00:00]} 70. a5+ {[%emt 0:00:05]} Ka7 {[%emt 0:00:00]} 71. Kb5 {[%emt 0:00:10]} Kb7 {[%emt 0:00:00]} 72. a6+ {[%emt 0:00:07]} Ka7 {[%emt 0:00:00]} 73. Ka5 {[%emt 0:00:15]} 1-0

[Event "44th Chess Olympiad Women 2022"]
[Site "Chennai"]
[Date "2022.08.09"]
[Round "11.44"]
[White "De la Riva Real, Jana"]
[Black "Thurner, Anya"]
[Result "0-1"]
[ECO "C45"]
[WhiteElo "1167"]
[BlackElo "1619"]
[Annotator "NA RC COMBH"]
[PlyCount "88"]
[EventDate "2022.07.29"]
[EventType "team-tourn"]
[EventCountry "IND"]
[SourceTitle "playchess.com"]
[Source "ChessBase"]
[SourceQuality "1"]
[WhiteTeam "Andorra"]
[BlackTeam "New Zealand"]
[WhiteTeamCountry "AND"]
[BlackTeamCountry "NZL"]
[TimeControl "40/5400+30:1800+30"]

1. e4 {[%emt 0:00:03]} e5 {[%emt 0:00:04]} 2. Nf3 {[%emt 0:00:12]} Nc6 {[%emt 0:00:06]} 3. Nc3 {[%emt 0:00:10]} Nf6 {[%emt 0:00:06]} 4. d4 {[%emt 0:00:18]} exd4 {[%emt 0:00:07]} 5. Nxd4 {[%emt 0:00:12]} Bc5 {[%emt 0:00:51]} 6. Nxc6 {[%emt 0:00:46]} dxc6 {[%emt 0:01:58]} 7. Qxd8+ {[%emt 0:01:40]} Kxd8 {[%emt 0:00:19]} 8. Bd3 {[%emt 0:03:56]} Be6 {[%emt 0:01:28]} 9. Bg5 {[%emt 0:02:11]} h6 {[%emt 0:04:50]} 10. Bh4 {[%emt 0:00:49]} g5 {[%emt 0:02:34]} 11. Bg3 {[%emt 0:00:27]} Nh5 {[%emt 0:03:46]} 12. Ne2 {[%emt 0:20:41]} Nxg3 {[%emt 0:05:21]} 13. Nxg3 {[%emt 0:02:30]} Kd7 {[%emt 0:03:05]} 14. Rf1 {[%emt 0:06:45]} Rad8 {[%emt 0:05:40]} 15. O-O-O {[%emt 0:01:45]} Kc8 {[%emt 0:01:53]} 16. a3 {[%emt 0:04:19]} Rd7 {[%emt 0:13:52]} 17. h3 {[%emt 0:12:54]} Rhd8 {[%emt 0:05:29]} 18. Nh5 {[%emt 0:06:56]} Bd4 {[%emt 0:10:47]} 19. f4 {[%emt 0:06:19]} Be3+ {[%emt 0:19:48]} 20. Kb1 {[%emt 0:00:56]} gxf4 {[%emt 0:07:59]} 21. Nxf4 {[%emt 0:00:44]} Bc4 {[%emt 0:03:06]} 22. Rf3 {[%emt 0:04:06]} Bxf4 {[%emt 0:01:58]} 23. Rxf4 {[%emt 0:00:11]} Bxd3 {[%emt 0:05:33]} 24. cxd3 {[%emt 0:00:09]} Rxd3 {[%emt 0:00:53]} 25. Rxd3 {[%emt 0:00:16]} Rxd3 {[%emt 0:00:04]} 26. Rxf7 {[%emt 0:00:14]} Rg3 {[%emt 0:00:10]} 27. Rf2 {[%emt 0:01:27]} Kd7 {[%emt 0:01:04]} 28. Re2 {[%emt 0:01:36]} Kd6 {[%emt 0:00:41]} 29. Kc2 {[%emt 0:00:42]} c5 {[%emt 0:00:30]} 30. Rd2+ {[%emt 0:04:04]} Ke6 {[%emt 0:00:19]} 31. Re2 {[%emt 0:00:53]} b5 {[%emt 0:00:33]} 32. Kd2 {[%emt 0:04:18]} a5 {[%emt 0:00:59]} 33. Kc2 {[%emt 0:00:48]} a4 {[%emt 0:00:16]} 34. Kb1 {[%emt 0:02:56]} b4 {[%emt 0:00:41]} 35. Ka2 {[%emt 0:00:47]} b3+ {[%emt 0:00:34]} 36. Kb1 {[%emt 0:00:12]} c4 {[%emt 0:00:20]} 37. Kc1 {[%emt 0:01:07]} c3 {[%emt 0:00:16]} 38. bxc3 {[%emt 0:00:10]} Rxc3+ {[%emt 0:00:06]} 39. Kb2 {[%emt 0:00:21]} Rg3 {[%emt 0:00:20]} 40. Kc1 {[%emt 0:02:02]} c5 {[%emt 0:00:25]} 41. Rd2 {[%emt 0:32:01]} c4 {[%emt 0:30:40]} 42. Rd4 {[%emt 0:01:06]} c3 {[%emt 0:00:24]} 43. Rxa4 {[%emt 0:03:15]} Rxg2 {[%emt 0:00:15]} 44. Rb4 {[%emt 0:01:36]} Rg1# {[%emt 0:00:47]} 0-1

[Event "44th Chess Olympiad Women 2022"]
[Site "Chennai"]
[Date "2022.08.09"]
[Round "11.45"]
[White "Munoz Santana, Doribel"]
[Black "Burbach, Anya Belle"]
[Result "1/2-1/2"]
[ECO "A13"]
[WhiteElo "1851"]
[BlackElo "1375"]
[Annotator "NA RC COMBH"]
[PlyCount "136"]
[EventDate "2022.07.29"]
[EventType "team-tourn"]
[EventCountry "IND"]
[SourceTitle "playchess.com"]
[Source "ChessBase"]
[SourceQuality "1"]
[WhiteTeam "Dominican Republic"]
[BlackTeam "Thailand"]
[WhiteTeamCountry "DOM"]
[BlackTeamCountry "THA"]
[TimeControl "40/5400+30:1800+30"]

1. Nf3 {[%emt 0:00:04]} d5 {[%emt 0:01:16]} 2. e3 {[%emt 0:00:24]} Nf6 {[%emt 0:00:51]} 3. c4 {[%emt 0:00:13]} e6 {[%emt 0:04:53]} 4. cxd5 {[%emt 0:02:21]} exd5 {[%emt 0:00:13]} 5. d4 {[%emt 0:00:48]} Bf5 {[%emt 0:01:20]} 6. Be2 {[%emt 0:01:32]} Bd6 {[%emt 0:00:23]} 7. O-O {[%emt 0:01:00]} O-O {[%emt 0:01:27]} 8. Nc3 {[%emt 0:00:14]} c6 {[%emt 0:01:00]} 9. a3 {[%emt 0:00:53]} h6 {[%emt 0:01:38]} 10. b4 {[%emt 0:00:16]} a6 {[%emt 0:01:41]} 11. Na4 {[%emt 0:00:38]} Nbd7 {[%emt 0:01:20]} 12. Bb2 {[%emt 0:00:36]} Re8 {[%emt 0:01:17]} 13. Nc5 {[%emt 0:00:32]} Qc7 {[%emt 0:00:51]} 14. h3 {[%emt 0:05:31]} Rad8 {[%emt 0:05:19]} 15. Rc1 {[%emt 0:00:00]} Qb8 {[%emt 0:01:48]} 16. Nd3 {[%emt 0:05:44]} Ne4 {[%emt 0:02:40]} 17. Nfe5 {[%emt 0:05:28]} f6 {[%emt 0:04:14]} 18. Nxd7 {[%emt 0:02:31]} Rxd7 {[%emt 0:05:41]} 19. Bg4 {[%emt 0:03:26]} Bxg4 {[%emt 0:01:49]} 20. Qxg4 {[%emt 0:00:04]} Rf7 {[%emt 0:02:15]} 21. Rc2 {[%emt 0:01:29]} Qc8 {[%emt 0:08:02]} 22. Qxc8 {[%emt 0:15:29]} Rxc8 {[%emt 0:00:08]} 23. g3 {[%emt 0:00:33]} g5 {[%emt 0:03:09]} 24. Kg2 {[%emt 0:00:19]} Bf8 {[%emt 0:04:22]} 25. Bc1 {[%emt 0:04:37]} Re8 {[%emt 0:05:42]} 26. Re1 {[%emt 0:10:14]} Bg7 {[%emt 0:05:27]} 27. Nc5 {[%emt 0:01:16]} Nxc5 {[%emt 0:00:54]} 28. bxc5 {[%emt 0:00:31]} f5 {[%emt 0:01:34]} 29. Rd1 {[%emt 0:01:45]} Bf6 {[%emt 0:02:59]} 30. Rd3 {[%emt 0:00:52]} Bd8 {[%emt 0:01:05]} 31. Rb3 {[%emt 0:00:17]} Ba5 {[%emt 0:03:20]} 32. Rcb2 {[%emt 0:01:55]} Ree7 {[%emt 0:00:33]} 33. Kf3 {[%emt 0:03:01]} h5 {[%emt 0:03:05]} 34. Kg2 {[%emt 0:00:58]} Rg7 {[%emt 0:02:56]} 35. Kf1 {[%emt 0:01:06]} h4 {[%emt 0:00:58]} 36. Kg2 {[%emt 0:05:09]} Kf8 {[%emt 0:01:54]} 37. a4 {[%emt 0:01:54]} Ke8 {[%emt 0:00:50]} 38. Bd2 {[%emt 0:06:54]} Bxd2 {[%emt 0:00:50]} 39. Rxd2 {[%emt 0:00:03]} Kd8 {[%emt 0:05:42]} 40. g4 {[%emt 0:08:27]} fxg4 {[%emt 0:01:11]} 41. hxg4 {[%emt 0:30:08]} Rgf7 {[%emt 0:33:56]} 42. f3 {[%emt 0:05:48]} Kc8 {[%emt 0:03:20]} 43. Rf2 {[%emt 0:01:33]} Rf6 {[%emt 0:01:22]} 44. Kh3 {[%emt 0:03:22]} Rfe6 {[%emt 0:01:41]} 45. Re2 {[%emt 0:00:17]} a5 {[%emt 0:03:40]} 46. Kg2 {[%emt 0:00:48]} Re8 {[%emt 0:00:00]} 47. Kh3 {[%emt 0:00:00]} Rf6 {[%emt 0:00:00]} 48. Rf2 {[%emt 0:00:00]} Ref8 {[%emt 0:00:00]} 49. Kg2 {[%emt 0:00:00]} R8f7 {[%emt 0:00:00]} 50. Rc3 {[%emt 0:00:00]} Kb8 {[%emt 0:00:00]} 51. Rb3 {[%emt 0:00:00]} Ka7 {[%emt 0:00:00]} 52. Rf1 {[%emt 0:00:00]} h3+ {[%emt 0:00:00]} 53. Kxh3 {[%emt 0:00:00]} Rxf3+ {[%emt 0:00:00]} 54. Rxf3 {[%emt 0:00:00]} Rxf3+ {[%emt 0:00:00]} 55. Kg2 {[%emt 0:00:00]} Rf7 {[%emt 0:00:00]} 56. Rb1 {[%emt 0:00:00]} Re7 {[%emt 0:00:00]} 57. Kf2 {[%emt 0:00:00]} Rh7 {[%emt 0:00:00]} 58. Kg3 {[%emt 0:00:00]} Re7 {[%emt 0:00:00]} 59. Kf2 {[%emt 0:00:00]} Re4 {[%emt 0:00:00]} 60. Kf3 {[%emt 0:00:00]} Re7 {[%emt 0:00:00]} 61. Kf2 {[%emt 0:00:00]} Re8 {[%emt 0:02:35]} 62. Rh1 {[%emt 0:00:00]} Rg8 {[%emt 0:00:00]} 63. Rb1 {[%emt 0:00:00]} Rh8 {[%emt 0:00:00]} 64. Kg3 {[%emt 0:00:00]} Re8 {[%emt 0:00:00]} 65. Kf3 {[%emt 0:00:00]} Re7 {[%emt 0:00:00]} 66. Kf2 {[%emt 0:00:00]} Kb8 {[%emt 0:00:00]} 67. Rh1 {[%emt 0:00:00]} Ka7 {[%emt 0:00:00]} 68. Rb1 {[%emt 0:00:00]} Rh7 {[%emt 0:00:00]} 1/2-1/2

[Event "44th Chess Olympiad Women 2022"]
[Site "Chennai"]
[Date "2022.08.09"]
[Round "11.45"]
[White "Almanzar Vasquez, Jeniffer Maria"]
[Black "Chuemsakul, Sarocha"]
[Result "0-1"]
[ECO "C47"]
[WhiteElo "1762"]
[BlackElo "1684"]
[Annotator "NA RC COMBH"]
[PlyCount "84"]
[EventDate "2022.07.29"]
[EventType "team-tourn"]
[EventCountry "IND"]
[SourceTitle "playchess.com"]
[Source "ChessBase"]
[SourceQuality "1"]
[WhiteTeam "Dominican Republic"]
[BlackTeam "Thailand"]
[WhiteTeamCountry "DOM"]
[BlackTeamCountry "THA"]
[TimeControl "40/5400+30:1800+30"]

1. e4 {[%emt 0:00:33]} e5 {[%emt 0:00:08]} 2. Nf3 {[%emt 0:00:06]} Nc6 {[%emt 0:00:06]} 3. d4 {[%emt 0:00:11]} exd4 {[%emt 0:00:22]} 4. Nxd4 {[%emt 0:00:08]} Nf6 {[%emt 0:00:28]} 5. Nc3 {[%emt 0:03:28]} Bb4 {[%emt 0:00:28]} 6. Nxc6 {[%emt 0:01:07]} bxc6 {[%emt 0:00:07]} 7. Bd3 {[%emt 0:00:28]} O-O {[%emt 0:03:17]} 8. O-O {[%emt 0:00:12]} d5 {[%emt 0:02:42]} 9. Bg5 {[%emt 0:04:59]} h6 {[%emt 0:09:41]} 10. Bh4 {[%emt 0:09:19]} Be7 {[%emt 0:13:11]} 11. exd5 {[%emt 0:07:56]} cxd5 {[%emt 0:01:59]} 12. Bg3 {[%emt 0:04:13]} c6 {[%emt 0:01:12]} 13. h3 {[%emt 0:01:36]} Qb6 {[%emt 0:03:29]} 14. Na4 {[%emt 0:04:11]} Qa5 {[%emt 0:03:50]} 15. c3 {[%emt 0:00:25]} c5 {[%emt 0:12:39]} 16. Re1 {[%emt 0:05:21]} Re8 {[%emt 0:01:35]} 17. a3 {[%emt 0:03:29]} c4 {[%emt 0:12:13]} 18. Bc2 {[%emt 0:00:40]} Be6 {[%emt 0:00:56]} 19. Qd4 {[%emt 0:04:36]} Rac8 {[%emt 0:04:33]} 20. Be5 {[%emt 0:04:18]} Red8 {[%emt 0:11:45]} 21. Re3 {[%emt 0:06:08]} Bd7 {[%emt 0:05:17]} 22. Bc7 {[%emt 0:11:36]} Rxc7 {[%emt 0:01:20]} 23. Rxe7 {[%emt 0:00:06]} Bxa4 {[%emt 0:00:57]} 24. Rxc7 {[%emt 0:00:12]} Bxc2 {[%emt 0:01:09]} 25. Rb7 {[%emt 0:03:45]} Qa6 {[%emt 0:04:10]} 26. Rb4 {[%emt 0:02:54]} Re8 {[%emt 0:02:12]} 27. f3 {[%emt 0:02:38]} Re2 {[%emt 0:01:36]} 28. Rf1 {[%emt 0:03:11]} Bd3 {[%emt 0:00:50]} 29. Qc5 {[%emt 0:03:53]} Qe6 {[%emt 0:01:23]} 30. Rf2 {[%emt 0:01:53]} Re1+ {[%emt 0:01:04]} 31. Kh2 {[%emt 0:00:07]} Nh5 {[%emt 0:00:31]} 32. Qd4 {[%emt 0:01:00]} Qd6+ {[%emt 0:00:24]} 33. f4 {[%emt 0:00:24]} Re4 {[%emt 0:00:49]} 34. Qxa7 {[%emt 0:00:47]} Kh7 {[%emt 0:00:34]} 35. Rb6 {[%emt 0:03:11]} Qd8 {[%emt 0:00:19]} 36. Rxh6+ {[%emt 0:05:43]} Kxh6 {[%emt 0:00:36]} 37. Qxf7 {[%emt 0:00:06]} Qh4 {[%emt 0:00:32]} 38. Rf3 {[%emt 0:00:36]} Rxf4 {[%emt 0:00:32]} 39. Qe6+ {[%emt 0:00:31]} Rf6 {[%emt 0:00:27]} 40. Qxd5 {[%emt 0:01:22]} Rxf3 {[%emt 0:00:08]} 41. Qxf3 {[%emt 0:30:06]} Qf4+ {[%emt 0:30:09]} 42. Qxf4+ {[%emt 0:00:12]} Nxf4 {[%emt 0:00:01]} 0-1

[Event "44th Chess Olympiad Women 2022"]
[Site "Chennai"]
[Date "2022.08.09"]
[Round "11.45"]
[White "Prommuang, Araya"]
[Black "Diaz Cesar, Wilsaida Pieranlly"]
[Result "0-1"]
[ECO "B48"]
[WhiteElo "1651"]
[BlackElo "1834"]
[Annotator "NA RC COMBH"]
[PlyCount "80"]
[EventDate "2022.07.29"]
[EventType "team-tourn"]
[EventCountry "IND"]
[SourceTitle "playchess.com"]
[Source "ChessBase"]
[SourceQuality "1"]
[WhiteTeam "Thailand"]
[BlackTeam "Dominican Republic"]
[WhiteTeamCountry "THA"]
[BlackTeamCountry "DOM"]
[TimeControl "40/5400+30:1800+30"]

1. e4 {[%emt 0:00:05]} c5 {[%emt 0:00:06]} 2. Nf3 {[%emt 0:00:24]} e6 {[%emt 0:00:08]} 3. d4 {[%emt 0:00:09]} cxd4 {[%emt 0:00:05]} 4. Nxd4 {[%emt 0:00:06]} Nc6 {[%emt 0:00:07]} 5. Nc3 {[%emt 0:00:32]} Qc7 {[%emt 0:00:40]} 6. a3 {[%emt 0:00:29]} a6 {[%emt 0:00:08]} 7. Be3 {[%emt 0:00:21]} Nf6 {[%emt 0:00:51]} 8. Be2 {[%emt 0:00:56]} Be7 {[%emt 0:01:26]} 9. f4 {[%emt 0:00:36]} d6 {[%emt 0:00:52]} 10. O-O {[%emt 0:00:55]} Bd7 {[%emt 0:03:28]} 11. Qe1 {[%emt 0:01:27]} Nxd4 {[%emt 0:03:03]} 12. Bxd4 {[%emt 0:01:59]} e5 {[%emt 0:02:31]} 13. fxe5 {[%emt 0:06:37]} dxe5 {[%emt 0:01:04]} 14. Qg3 {[%emt 0:00:32]} Bc5 {[%emt 0:02:46]} 15. Bxc5 {[%emt 0:01:26]} Qxc5+ {[%emt 0:00:10]} 16. Kh1 {[%emt 0:00:09]} Kf8 {[%emt 0:05:25]} 17. b4 {[%emt 0:20:07]} Qe7 {[%emt 0:04:33]} 18. Nd5 {[%emt 0:06:14]} Nxd5 {[%emt 0:00:37]} 19. exd5 {[%emt 0:00:03]} h5 {[%emt 0:01:51]} 20. Bc4 {[%emt 0:20:24]} Qd6 {[%emt 0:10:50]} 21. Rae1 {[%emt 0:08:28]} Re8 {[%emt 0:01:52]} 22. h4 {[%emt 0:04:54]} Rh6 {[%emt 0:11:32]} 23. Bd3 {[%emt 0:10:03]} Kg8 {[%emt 0:10:43]} 24. c4 {[%emt 0:03:49]} b5 {[%emt 0:07:13]} 25. Qf3 {[%emt 0:06:52]} Qe7 {[%emt 0:06:36]} 26. g3 {[%emt 0:02:14]} Bg4 {[%emt 0:01:21]} 27. Qg2 {[%emt 0:02:14]} Qd7 {[%emt 0:06:56]} 28. Kh2 {[%emt 0:01:05]} f5 {[%emt 0:00:44]} 29. Be2 {[%emt 0:01:06]} Rg6 {[%emt 0:04:05]} 30. c5 {[%emt 0:00:31]} Bxe2 {[%emt 0:01:32]} 31. Qxe2 {[%emt 0:00:33]} Rg4 {[%emt 0:02:11]} 32. Kh3 {[%emt 0:00:29]} f4 {[%emt 0:00:11]} 33. gxf4 {[%emt 0:00:16]} Rxf4+ {[%emt 0:00:21]} 34. Kg3 {[%emt 0:00:28]} Rg4+ {[%emt 0:00:21]} 35. Kh3 {[%emt 0:00:20]} Re4+ {[%emt 0:00:08]} 36. Kh2 {[%emt 0:00:50]} Rxe2+ {[%emt 0:02:34]} 37. Rxe2 {[%emt 0:00:33]} Qxd5 {[%emt 0:00:11]} 38. Rfe1 {[%emt 0:00:40]} e4 {[%emt 0:00:10]} 39. Re3 {[%emt 0:00:26]} Qe5+ {[%emt 0:00:22]} 40. Kg2 {[%emt 0:00:33]} Re6 {[%emt 0:00:00]} 0-1

[Event "44th Chess Olympiad Women 2022"]
[Site "Chennai"]
[Date "2022.08.09"]
[Round "11.45"]
[White "Buhagiar, Melita Sunan"]
[Black "Gonzalez Peguero, Mary Loly"]
[Result "1-0"]
[ECO "B08"]
[WhiteElo "1431"]
[BlackElo "1666"]
[Annotator "NA RC COMBH"]
[PlyCount "85"]
[EventDate "2022.07.29"]
[EventType "team-tourn"]
[EventCountry "IND"]
[SourceTitle "playchess.com"]
[Source "ChessBase"]
[SourceQuality "1"]
[WhiteTeam "Thailand"]
[BlackTeam "Dominican Republic"]
[WhiteTeamCountry "THA"]
[BlackTeamCountry "DOM"]
[TimeControl "40/5400+30:1800+30"]

1. d4 {[%emt 0:00:02]} Nf6 {[%emt 0:00:12]} 2. Nc3 {[%emt 0:00:08]} g6 {[%emt 0:00:09]} 3. e4 {[%emt 0:00:06]} d6 {[%emt 0:00:21]} 4. Nf3 {[%emt 0:00:43]} Nbd7 {[%emt 0:01:37]} 5. h3 {[%emt 0:06:18]} e5 {[%emt 0:02:38]} 6. dxe5 {[%emt 0:00:14]} dxe5 {[%emt 0:00:08]} 7. Bg5 {[%emt 0:01:45]} Bg7 {[%emt 0:02:00]} 8. Bc4 {[%emt 0:24:03]} O-O {[%emt 0:01:14]} 9. Qd2 {[%emt 0:02:56]} c6 {[%emt 0:00:27]} 10. a4 {[%emt 0:03:33]} a5 {[%emt 0:03:30]} 11. Rd1 {[%emt 0:01:51]} Qe7 {[%emt 0:02:52]} 12. Qe3 {[%emt 0:03:09]} Re8 {[%emt 0:00:57]} 13. O-O {[%emt 0:01:55]} Qb4 {[%emt 0:06:37]} 14. b3 {[%emt 0:02:47]} Qc5 {[%emt 0:06:05]} 15. Qxc5 {[%emt 0:02:39]} Nxc5 {[%emt 0:00:15]} 16. Rfe1 {[%emt 0:00:31]} Nh5 {[%emt 0:03:01]} 17. Be3 {[%emt 0:06:01]} Ne6 {[%emt 0:02:27]} 18. g3 {[%emt 0:01:57]} Nd4 {[%emt 0:07:37]} 19. Nxd4 {[%emt 0:05:17]} exd4 {[%emt 0:00:12]} 20. Bxd4 {[%emt 0:00:08]} Bxh3 {[%emt 0:01:02]} 21. Bxg7 {[%emt 0:00:38]} Nxg7 {[%emt 0:01:54]} 22. f3 {[%emt 0:04:34]} h5 {[%emt 0:03:26]} 23. Rd6 {[%emt 0:02:07]} Be6 {[%emt 0:01:39]} 24. Bf1 {[%emt 0:01:59]} Kf8 {[%emt 0:02:49]} 25. Red1 {[%emt 0:05:09]} Ke7 {[%emt 0:00:44]} 26. Ne2 {[%emt 0:02:02]} Rad8 {[%emt 0:01:37]} 27. Rxd8 {[%emt 0:01:04]} Rxd8 {[%emt 0:00:08]} 28. Rxd8 {[%emt 0:00:07]} Kxd8 {[%emt 0:00:05]} 29. Nf4 {[%emt 0:00:26]} Bd7 {[%emt 0:00:30]} 30. Bc4 {[%emt 0:06:08]} Ke7 {[%emt 0:00:21]} 31. Nd3 {[%emt 0:00:43]} Ne6 {[%emt 0:02:55]} 32. Ne5 {[%emt 0:02:24]} Be8 {[%emt 0:02:15]} 33. Bxe6 {[%emt 0:01:30]} Kxe6 {[%emt 0:00:28]} 34. Nc4 {[%emt 0:00:13]} b5 {[%emt 0:09:14]} 35. Nxa5 {[%emt 0:06:28]} bxa4 {[%emt 0:03:33]} 36. bxa4 {[%emt 0:00:04]} c5 {[%emt 0:00:39]} 37. Nb7 {[%emt 0:01:02]} c4 {[%emt 0:00:35]} 38. Kf2 {[%emt 0:02:30]} Kd7 {[%emt 0:04:38]} 39. e5 {[%emt 0:03:33]} Ke6 {[%emt 0:04:20]} 40. f4 {[%emt 0:00:27]} Kd5 {[%emt 0:01:59]} 41. a5 {[%emt 0:31:11]} c3 {[%emt 0:34:47]} 42. Ke3 {[%emt 0:00:00]} Bc6 {[%emt 0:00:00]} 43. a6 {[%emt 0:00:00]} 1-0

[Event "44th Chess Olympiad Women 2022"]
[Site "Chennai"]
[Date "2022.08.09"]
[Round "11.46"]
[White "Khalil, Manar"]
[Black "Stagno, Milena"]
[Result "1-0"]
[ECO "B38"]
[WhiteElo "1831"]
[BlackElo "1448"]
[Annotator "NA RC COMBH"]
[PlyCount "63"]
[EventDate "2022.07.29"]
[EventType "team-tourn"]
[EventCountry "IND"]
[SourceTitle "playchess.com"]
[Source "ChessBase"]
[SourceQuality "1"]
[WhiteTeam "Syria"]
[BlackTeam "Malta"]
[WhiteTeamCountry "SYR"]
[BlackTeamCountry "MLT"]
[TimeControl "40/5400+30:1800+30"]

1. e4 {[%emt 0:00:03]} c5 {[%emt 0:00:07]} 2. Nf3 {[%emt 0:00:07]} Nc6 {[%emt 0:00:09]} 3. d4 {[%emt 0:00:05]} cxd4 {[%emt 0:00:04]} 4. Nxd4 {[%emt 0:00:04]} g6 {[%emt 0:00:12]} 5. c4 {[%emt 0:00:17]} Bg7 {[%emt 0:00:21]} 6. Be3 {[%emt 0:00:08]} Nf6 {[%emt 0:00:16]} 7. Nc3 {[%emt 0:00:14]} d6 {[%emt 0:00:45]} 8. Be2 {[%emt 0:00:17]} O-O {[%emt 0:00:57]} 9. O-O {[%emt 0:00:15]} Bd7 {[%emt 0:00:32]} 10. f3 {[%emt 0:00:29]} Nxd4 {[%emt 0:02:44]} 11. Bxd4 {[%emt 0:00:29]} Bc6 {[%emt 0:00:39]} 12. Qd2 {[%emt 0:02:48]} a6 {[%emt 0:03:52]} 13. Rad1 {[%emt 0:03:56]} Rc8 {[%emt 0:05:35]} 14. Kh1 {[%emt 0:02:17]} Qc7 {[%emt 0:03:00]} 15. Qe3 {[%emt 0:06:08]} Nd7 {[%emt 0:05:23]} 16. Bxg7 {[%emt 0:05:09]} Kxg7 {[%emt 0:00:05]} 17. b4 {[%emt 0:03:38]} b6 {[%emt 0:02:27]} 18. f4 {[%emt 0:04:51]} Nf6 {[%emt 0:04:19]} 19. Rf3 {[%emt 0:10:04]} Bd7 {[%emt 0:04:24]} 20. Rg3 {[%emt 0:07:12]} b5 {[%emt 0:02:23]} 21. e5 {[%emt 0:03:50]} dxe5 {[%emt 0:04:25]} 22. fxe5 {[%emt 0:00:11]} Ng8 {[%emt 0:02:17]} 23. Nd5 {[%emt 0:02:40]} Qc6 {[%emt 0:06:54]} 24. Nb6 {[%emt 0:03:06]} Rcd8 {[%emt 0:00:37]} 25. Bf3 {[%emt 0:07:15]} Qc7 {[%emt 0:01:38]} 26. Rxd7 {[%emt 0:03:53]} Rxd7 {[%emt 0:00:08]} 27. Nxd7 {[%emt 0:00:07]} Qxd7 {[%emt 0:00:05]} 28. c5 {[%emt 0:00:20]} Nh6 {[%emt 0:01:35]} 29. Qc3 {[%emt 0:02:20]} f6 {[%emt 0:02:14]} 30. h3 {[%emt 0:03:52]} Nf7 {[%emt 0:01:45]} 31. Bg4 {[%emt 0:03:06]} f5 {[%emt 0:01:08]} 32. e6+ {[%emt 0:00:48]} 1-0